[Event "Mistrovství Čech mládeže 2023 - HD12"]
[Site "Harrachov, Czech Republic"]
[Date "2023.10.26"]
[Round "7.2"]
[White "Lutskiy, Mikhail"]
[Black "Málek, Daniel"]
[Result "0-1"]
[TimeControl "90m + 30s"]
[WhiteElo "1353"]
[BlackElo "1404"]

1. e4 {[%emt 00:00:04]} e5 {[%clk 01:30:51]} {[%emt 00:00:05]} 2. Nf3 {[%clk
01:31:05]} {[%emt 00:00:23]} Nc6 {[%clk 01:30:53]} {[%emt 00:00:29]} 3. Bc4
{[%clk 01:31:01]} {[%emt 00:00:33]} Bc5 {[%clk 01:31:15]} {[%emt 00:00:09]} 4.
c3 {[%clk 01:30:58]} {[%emt 00:00:33]} Nf6 {[%clk 01:30:55]} {[%emt 00:00:49]}
5. d3 {[%clk 01:30:40]} {[%emt 00:00:49]} d6 {[%clk 01:30:04]} {[%emt
00:01:20]} 6. O-O {[%clk 01:30:28]} {[%emt 00:00:43]} Bg4 {[%clk 01:30:06]}
{[%emt 00:00:29]} 7. Nbd2 {[%clk 01:30:20]} {[%emt 00:00:37]} O-O {[%clk
01:29:25]} {[%emt 00:01:11]} 8. b4 {[%clk 01:30:29]} {[%emt 00:00:22]} Bb6
{[%clk 01:29:24]} {[%emt 00:00:30]} 9. a4 {[%clk 01:30:11]} {[%emt 00:00:47]}
a5 {[%clk 01:29:29]} {[%emt 00:00:25]} 10. b5 {[%clk 01:30:16]} {[%emt
00:00:26]} Ne7 {[%clk 01:29:39]} {[%emt 00:00:19]} 11. Ba3 {[%clk 01:29:48]}
{[%emt 00:00:58]} Rc8 {[%clk 01:28:19]} {[%emt 00:01:50]} 12. h3 {[%clk
01:29:33]} {[%emt 00:00:45]} Bh5 {[%clk 01:28:31]} {[%emt 00:00:18]} 13. Re1
{[%clk 01:29:27]} {[%emt 00:00:36]} c6 {[%clk 01:28:29]} {[%emt 00:00:33]} 14.
bxc6 {[%clk 01:29:12]} {[%emt 00:00:46]} Rxc6 {[%clk 01:28:47]} {[%emt
00:00:11]} 15. Nf1 {[%clk 01:28:49]} {[%emt 00:00:53]} Bg6 {[%clk 01:24:45]}
{[%emt 00:04:32]} 16. Ng3 {[%clk 01:28:45]} {[%emt 00:00:32]} Qc7 {[%clk
01:21:20]} {[%emt 00:03:57]} 17. Bb5 {[%clk 01:26:29]} {[%emt 00:02:46]} Rxc3
{[%clk 01:20:14]} {[%emt 00:01:35]} 18. Bc4 {[%clk 01:24:29]} {[%emt 00:02:31]}
Bxf2+ {[%clk 01:16:23]} {[%emt 00:04:21]} 19. Kxf2 {[%clk 01:22:35]} {[%emt
00:02:24]} Rxa3 {[%clk 01:16:20]} {[%emt 00:00:33]} 20. Rc1 {[%clk 01:19:07]}
{[%emt 00:03:58]} Qb6+ {[%clk 01:13:35]} {[%emt 00:03:14]} 21. Kf1 {[%clk
01:18:45]} {[%emt 00:00:52]} d5 {[%clk 01:09:41]} {[%emt 00:04:24]} 22. exd5
{[%clk 01:17:05]} {[%emt 00:02:11]} Nexd5 {[%clk 01:09:52]} {[%emt 00:00:19]}
23. Bxd5 {[%clk 01:16:33]} {[%emt 00:01:02]} Nxd5 {[%clk 01:10:09]} {[%emt
00:00:13]} 24. d4 {[%clk 01:13:42]} {[%emt 00:03:21]} Ne3+ {[%clk 01:09:45]}
{[%emt 00:00:54]} 25. Rxe3 {[%clk 01:12:42]} {[%emt 00:01:31]} Rxe3 {[%clk
01:10:01]} {[%emt 00:00:14]} 26. Nxe5 {[%clk 01:12:10]} {[%emt 00:01:01]} Qf6+
{[%clk 01:06:17]} {[%emt 00:04:13]} 27. Nf3 {[%clk 01:12:08]} {[%emt 00:00:33]}
Rd8 {[%clk 01:05:19]} {[%emt 00:01:26]} 28. Kf2 {[%clk 01:11:01]} {[%emt
00:01:39]} Rd3 {[%clk 01:05:14]} {[%emt 00:00:34]} 29. Qe2 {[%clk 01:10:23]}
{[%emt 00:01:09]} h6 {[%clk 01:04:09]} {[%emt 00:01:35]} 30. Nh5 {[%clk
01:07:39]} {[%emt 00:03:13]} Rxf3+ {[%clk 01:02:56]} {[%emt 00:01:43]} 31. Qxf3
{[%clk 01:07:01]} {[%emt 00:01:09]} Qxf3+ {[%clk 01:03:11]} {[%emt 00:00:14]}
32. Kxf3 {[%clk 01:06:53]} {[%emt 00:00:38]} Bxh5+ {[%clk 01:03:32]} {[%emt
00:00:09]} 33. Ke3 {[%clk 01:07:01]} {[%emt 00:00:22]} Re8+ {[%clk 01:02:53]}
{[%emt 00:01:09]} 34. Kd3 {[%clk 01:07:11]} {[%emt 00:00:21]} Be2+ {[%clk
01:02:59]} {[%emt 00:00:24]} 35. Kd2 {[%clk 01:07:13]} {[%emt 00:00:29]} b5
{[%clk 01:02:48]} {[%emt 00:00:40]} 36. Rc5 {[%clk 01:07:06]} {[%emt 00:00:36]}
bxa4 {[%clk 01:02:20]} {[%emt 00:00:59]} 37. Rxa5 {[%clk 01:07:24]} {[%emt
00:00:12]} Bf1 {[%clk 01:02:37]} {[%emt 00:00:13]} 38. Rxa4 {[%clk 01:07:30]}
{[%emt 00:00:24]} Bxg2 {[%clk 01:02:08]} {[%emt 00:00:59]} 39. Ra3 {[%clk
01:07:30]} {[%emt 00:00:31]} Re4 {[%clk 01:01:44]} {[%emt 00:00:52]} 40. Kd3
{[%clk 01:07:22]} {[%emt 00:00:37]} Rh4 {[%clk 01:01:50]} {[%emt 00:00:26]} 41.
Ra2 {[%clk 01:07:25]} {[%emt 00:00:27]} Rxh3+ {[%clk 01:01:51]} {[%emt
00:00:29]} 42. Kc4 {[%clk 01:07:22]} {[%emt 00:00:32]} Be4 {[%clk 01:01:54]}
{[%emt 00:00:27]} 43. Ra5 {[%clk 01:07:19]} {[%emt 00:00:34]} Kh7 {[%clk
01:00:42]} {[%emt 00:01:42]} 44. d5 {[%clk 01:06:29]} {[%emt 00:01:19]} Rh5
{[%clk 01:00:37]} {[%emt 00:00:35]} 45. Kd4 {[%clk 01:06:48]} {[%emt 00:00:12]}
Rxd5+ {[%clk 01:00:49]} {[%emt 00:00:18]} 46. Rxd5 {[%clk 01:07:04]} {[%emt
00:00:13]} Bxd5 {[%clk 01:00:59]} {[%emt 00:00:21]} 47. Kxd5 {[%clk 01:07:28]}
{[%emt 00:00:06]} Kg6 {[%clk 01:01:19]} {[%emt 00:00:11]} 48. Ke4 {[%clk
01:06:46]} {[%emt 00:01:11]} Kg5 {[%clk 01:01:07]} {[%emt 00:00:42]} 49. Kf3
{[%clk 01:06:51]} {[%emt 00:00:24]} Kf5 {[%clk 01:01:21]} {[%emt 00:00:17]} 50.
Kg3 {[%clk 01:07:01]} {[%emt 00:00:20]} g5 {[%clk 01:01:46]} {[%emt 00:00:04]}
51. Kf3 {[%clk 01:07:18]} {[%emt 00:00:13]} h5 {[%clk 01:02:13]} {[%emt
00:00:04]} 52. Kg3 {[%clk 01:07:32]} {[%emt 00:00:14]} Ke4 {[%clk 01:02:36]}
{[%emt 00:00:08]} 53. Kh3 {[%clk 01:06:39]} {[%emt 00:01:23]} f5 {[%clk
01:02:19]} {[%emt 00:00:48]} 54. Kg3 {[%clk 01:06:37]} {[%emt 00:00:31]} Ke3
{[%clk 01:02:40]} {[%emt 00:00:10]} 55. Kg2 {[%clk 01:06:58]} {[%emt 00:00:09]}
Ke2 {[%clk 01:03:08]} {[%emt 00:00:02]} 56. Kg1 {[%clk 01:05:08]} {[%emt
00:02:20]} f4 {[%clk 01:03:29]} {[%emt 00:00:08]} 57. Kg2 {[%clk 01:03:39]}
{[%emt 00:01:59]} f3 {[%clk 01:03:57]} {[%emt 00:00:03]} 58. Kh2 {[%clk
01:03:00]} {[%emt 00:01:09]} f2 {[%clk 01:04:14]} {[%emt 00:00:13]} 59. Kg3
{[%clk 01:03:23]} {[%emt 00:00:07]} f1=Q {[%clk 01:04:20]} {[%emt 00:00:23]} 60.
Kh2 {[%clk 01:03:39]} {[%emt 00:00:14]} Qf4 {[%clk 01:04:01]} {[%emt 00:00:49]}
61. Kg1 {[%clk 01:03:28]} {[%emt 00:00:42]} Qg4+ {[%clk 01:04:14]} {[%emt
00:00:17]} 62. Kh2 {[%clk 01:03:34]} {[%emt 00:00:24]} Kf2 {[%clk 01:04:34]}
{[%emt 00:00:09]} 63. Kh1 {[%clk 01:03:53]} {[%emt 00:00:11]} Qg1+ {[%clk
01:05:01]} {[%emt 00:00:04]} 0-1

[Event "Mistrovství Čech mládeže 2023 - HD12"]
[Site "Harrachov, Czech Republic"]
[Date "2023.10.26"]
[Round "7.3"]
[White "Honcharov, Makar"]
[Black "Zika, Miroslav"]
[Result "1-0"]
[TimeControl "90m + 30s"]
[WhiteElo "1872"]
[BlackElo "1199"]

1. e4 {[%clk 01:30:57]} {[%emt 00:00:02]} c5 {[%clk 01:30:55]} {[%emt
00:00:06]} 2. Nf3 {[%clk 01:31:22]} {[%emt 00:00:04]} Nc6 {[%clk 01:31:20]}
{[%emt 00:00:05]} 3. d4 {[%clk 01:31:49]} {[%emt 00:00:04]} cxd4 {[%clk
01:31:43]} {[%emt 00:00:07]} 4. Nxd4 {[%clk 01:32:15]} {[%emt 00:00:04]} Nf6
{[%clk 01:32:05]} {[%emt 00:00:08]} 5. Nc3 {[%clk 01:32:39]} {[%emt 00:00:05]}
g6 {[%clk 01:32:09]} {[%emt 00:00:27]} 6. Be3 {[%clk 01:33:04]} {[%emt
00:00:05]} Bg7 {[%clk 01:32:24]} {[%emt 00:00:15]} 7. Bc4 {[%clk 01:33:29]}
{[%emt 00:00:05]} O-O {[%clk 01:32:22]} {[%emt 00:00:32]} 8. Bb3 {[%clk
01:33:55]} {[%emt 00:00:04]} d6 {[%clk 01:31:52]} {[%emt 00:01:00]} 9. f3
{[%clk 01:34:19]} {[%emt 00:00:05]} Bd7 {[%clk 01:31:57]} {[%emt 00:00:25]} 10.
Qd2 {[%clk 01:34:44]} {[%emt 00:00:05]} a6 {[%clk 01:30:46]} {[%emt 00:01:42]}
11. g4 {[%clk 01:35:00]} {[%emt 00:00:13]} Qc8 {[%clk 01:30:12]} {[%emt
00:01:04]} 12. h4 {[%clk 01:34:47]} {[%emt 00:00:44]} Nxg4 {[%clk 01:28:50]}
{[%emt 00:01:52]} 13. fxg4 {[%clk 01:32:50]} {[%emt 00:02:28]} Bxg4 {[%clk
01:29:04]} {[%emt 00:00:15]} 14. Nd5 {[%clk 01:32:56]} {[%emt 00:00:24]} Qd8
{[%clk 01:22:30]} {[%emt 00:07:04]} 15. Rg1 {[%clk 01:28:34]} {[%emt 00:04:52]}
Bh5 {[%clk 01:21:09]} {[%emt 00:01:52]} 16. c3 {[%clk 01:22:52]} {[%emt
00:06:12]} e5 {[%clk 01:18:55]} {[%emt 00:02:44]} 17. Bg5 {[%clk 01:20:17]}
{[%emt 00:03:04]} Qa5 {[%clk 01:14:55]} {[%emt 00:04:30]} 18. Ne2 {[%clk
01:17:13]} {[%emt 00:03:34]} Kh8 {[%clk 01:12:58]} {[%emt 00:02:27]} 19. Bf6
{[%clk 01:14:59]} {[%emt 00:02:45]} Qc5 {[%clk 01:06:43]} {[%emt 00:06:43]} 20.
Qh6 {[%clk 01:13:32]} {[%emt 00:01:58]} Rg8 {[%clk 01:01:37]} {[%emt 00:05:36]}
21. Bxg7+ {[%clk 01:12:44]} {[%emt 00:01:19]} Rxg7 {[%clk 01:00:53]} {[%emt
00:01:14]} 22. Nf6 {[%clk 01:13:05]} {[%emt 00:00:09]} Bf3 {[%clk 00:59:22]}
{[%emt 00:01:59]} 23. h5 {[%clk 01:13:09]} {[%emt 00:00:27]} Ne7 {[%clk
00:54:41]} {[%emt 00:05:12]} 24. Rg3 {[%clk 01:12:11]} {[%emt 00:01:28]} Bxe2
{[%clk 00:53:21]} {[%emt 00:01:49]} 25. Kxe2 {[%clk 01:12:29]} {[%emt
00:00:13]} Ng8 {[%clk 00:52:39]} {[%emt 00:01:12]} 26. Nxg8 {[%clk 01:11:39]}
{[%emt 00:01:19]} Raxg8 {[%clk 00:52:17]} {[%emt 00:00:51]} 27. Rag1 {[%clk
01:11:48]} {[%emt 00:00:21]} Qc6 {[%clk 00:50:35]} {[%emt 00:02:13]} 28. Ke3
{[%clk 01:09:58]} {[%emt 00:02:20]} Qc5+ {[%clk 00:48:50]} {[%emt 00:02:15]} 29.
Kf3 {[%clk 01:09:03]} {[%emt 00:01:24]} Qb5 {[%clk 00:43:52]} {[%emt 00:05:27]}
30. hxg6 {[%clk 01:08:10]} {[%emt 00:01:25]} Qd3+ {[%clk 00:42:08]} {[%emt
00:02:14]} 31. Kf2 {[%clk 01:07:24]} {[%emt 00:01:16]} Qxe4 {[%clk 00:39:39]}
{[%emt 00:02:59]} 32. gxf7 {[%clk 01:06:29]} {[%emt 00:01:25]} Qf5+ {[%clk
00:38:44]} {[%emt 00:01:24]} 33. Rf3 {[%clk 01:06:55]} {[%emt 00:00:05]} 1-0

[Event "Mistrovství Čech mládeže 2023 - HD12"]
[Site "Harrachov, Czech Republic"]
[Date "2023.10.26"]
[Round "7.4"]
[White "Rendl, Luboš"]
[Black "Janoušková, Eliška"]
[Result "0-1"]
[TimeControl "90m + 30s"]
[WhiteElo "1420"]
[BlackElo "1385"]

1. e4 {[%clk 01:30:37]} {[%emt 00:00:22]} c5 {[%clk 01:30:24]} {[%emt
00:00:37]} 2. Nf3 {[%clk 01:31:00]} {[%emt 00:00:07]} e6 {[%clk 01:29:55]}
{[%emt 00:00:58]} 3. d4 {[%clk 01:30:43]} {[%emt 00:00:48]} cxd4 {[%clk
01:29:22]} {[%emt 00:01:03]} 4. Nxd4 {[%clk 01:31:01]} {[%emt 00:00:13]} Nf6
{[%clk 01:28:07]} {[%emt 00:01:44]} 5. Nc3 {[%clk 01:31:22]} {[%emt 00:00:10]}
d6 {[%clk 01:27:05]} {[%emt 00:01:31]} 6. g4 {[%clk 01:31:02]} {[%emt
00:00:50]} h6 {[%clk 01:23:27]} {[%emt 00:04:08]} 7. Bg2 {[%clk 01:26:49]}
{[%emt 00:04:43]} Be7 {[%clk 01:18:45]} {[%emt 00:05:12]} 8. Be3 {[%clk
01:23:05]} {[%emt 00:04:12]} a6 {[%clk 01:14:03]} {[%emt 00:05:13]} 9. f4
{[%clk 01:20:28]} {[%emt 00:03:08]} Qc7 {[%clk 01:07:50]} {[%emt 00:06:43]} 10.
Qf3 {[%clk 01:14:08]} {[%emt 00:06:47]} Nc6 {[%clk 01:00:54]} {[%emt 00:07:30]}
11. h4 {[%clk 01:12:00]} {[%emt 00:02:37]} Bd7 {[%clk 00:53:09]} {[%emt
00:08:15]} 12. Kf2 {[%clk 01:03:29]} {[%emt 00:09:02]} O-O-O {[%clk 00:48:44]}
{[%emt 00:04:54]} 13. Nce2 {[%clk 00:54:01]} {[%emt 00:09:58]} g6 {[%clk
00:43:59]} {[%emt 00:05:15]} 14. b4 {[%clk 00:49:52]} {[%emt 00:04:39]} Nxd4
{[%clk 00:40:05]} {[%emt 00:04:24]} 15. Bxd4 {[%clk 00:44:27]} {[%emt
00:05:55]} e5 {[%clk 00:37:43]} {[%emt 00:02:53]} 16. Bb2 {[%clk 00:44:07]}
{[%emt 00:00:46]} Nxg4+ {[%clk 00:37:21]} {[%emt 00:00:54]} 17. Kg3 {[%clk
00:43:54]} {[%emt 00:00:41]} f5 {[%clk 00:34:48]} {[%emt 00:03:06]} 18. c4
{[%clk 00:42:08]} {[%emt 00:02:16]} g5 {[%clk 00:30:04]} {[%emt 00:05:13]} 19.
exf5 {[%clk 00:38:54]} {[%emt 00:03:45]} Bxf5 {[%clk 00:30:08]} {[%emt
00:00:27]} 20. Bh3 {[%clk 00:37:59]} {[%emt 00:01:24]} gxf4+ {[%clk 00:30:02]}
{[%emt 00:00:36]} 21. Nxf4 {[%clk 00:37:55]} {[%emt 00:00:34]} exf4+ {[%clk
00:21:06]} {[%emt 00:09:26]} 22. Qxf4 {[%clk 00:37:42]} {[%emt 00:00:43]} Rhf8
{[%clk 00:21:13]} {[%emt 00:00:23]} 23. Bxg4 {[%clk 00:35:49]} {[%emt
00:02:23]} Bxg4 {[%clk 00:21:01]} {[%emt 00:00:43]} 24. Qxg4+ {[%clk 00:36:11]}
{[%emt 00:00:07]} Kb8 {[%clk 00:20:55]} {[%emt 00:00:36]} 25. Kh3 {[%clk
00:34:57]} {[%emt 00:01:37]} Rg8 {[%clk 00:19:28]} {[%emt 00:02:04]} 26. Qe6
{[%clk 00:34:07]} {[%emt 00:01:16]} Qc6 {[%clk 00:15:54]} {[%emt 00:04:08]} 27.
Qd5 {[%clk 00:31:58]} {[%emt 00:02:30]} Qd7+ {[%clk 00:16:11]} {[%emt
00:00:21]} 28. Kh2 {[%clk 00:27:38]} {[%emt 00:04:50]} Qg4 {[%clk 00:15:40]}
{[%emt 00:01:01]} 29. Bf6 {[%clk 00:26:55]} {[%emt 00:01:14]} Qg3# {[%clk
00:15:36]} {[%emt 00:00:34]} 0-1

[Event "Mistrovství Čech mládeže 2023 - HD12"]
[Site "Harrachov, Czech Republic"]
[Date "2023.10.26"]
[Round "7.5"]
[White "Trejbal, Jindřich"]
[Black "Gernert, Tomáš"]
[Result "1/2-1/2"]
[TimeControl "90m + 30s"]
[WhiteElo "1329"]
[BlackElo "1389"]

1. d4 {[%clk 01:30:50]} {[%emt 00:35:16]} f5 {[%clk 01:30:56]} {[%emt
00:00:04]} 2. c4 {[%clk 01:29:36]} {[%emt 00:01:44]} Nf6 {[%clk 01:31:11]}
{[%emt 00:00:15]} 3. Nc3 {[%clk 01:25:30]} {[%emt 00:04:36]} e6 {[%clk
01:29:44]} {[%emt 00:01:56]} 4. g3 {[%clk 01:16:49]} {[%emt 00:09:12]} d5
{[%clk 01:29:59]} {[%emt 00:00:14]} 5. cxd5 {[%clk 01:11:48]} {[%emt 00:05:32]}
exd5 {[%clk 01:29:48]} {[%emt 00:00:41]} 6. Bg2 {[%clk 01:07:58]} {[%emt
00:04:19]} c6 {[%clk 01:26:47]} {[%emt 00:03:32]} 7. Bg5 {[%clk 01:00:49]}
{[%emt 00:07:39]} Nbd7 {[%clk 01:23:09]} {[%emt 00:04:08]} 8. Bxf6 {[%clk
00:55:29]} {[%emt 00:05:50]} Nxf6 {[%clk 01:23:23]} {[%emt 00:00:16]} 9. e3
{[%clk 00:54:52]} {[%emt 00:01:07]} Bb4 {[%clk 01:23:03]} {[%emt 00:00:50]} 10.
Nge2 {[%clk 00:50:34]} {[%emt 00:04:47]} Ne4 {[%clk 01:22:26]} {[%emt
00:01:08]} 11. O-O {[%clk 00:46:44]} {[%emt 00:04:20]} O-O {[%emt 00:02:48]} 12.
Qc2 {[%clk 00:39:02]} {[%emt 00:08:11]} Rf6 {[%clk 01:17:01]} {[%emt 00:03:38]}
13. Nxe4 {[%clk 00:36:01]} {[%emt 00:03:31]} fxe4 {[%clk 01:17:15]} {[%emt
00:00:16]} 14. h3 {[%clk 00:31:16]} {[%emt 00:05:14]} Rh6 {[%clk 01:16:57]}
{[%emt 00:00:49]} 15. Kh2 {[%clk 00:28:55]} {[%emt 00:02:50]} Bd6 {[%clk
01:14:41]} {[%emt 00:02:47]} 16. f4 {[%clk 00:25:55]} {[%emt 00:03:30]} exf3
{[%clk 01:13:57]} {[%emt 00:01:14]} 17. Rxf3 {[%clk 00:25:32]} {[%emt
00:00:53]} Qh4 {[%clk 01:10:06]} {[%emt 00:04:21]} 18. Nf4 {[%clk 00:20:02]}
{[%emt 00:06:00]} Bxf4 {[%clk 01:10:16]} {[%emt 00:00:21]} 19. Rxf4 {[%clk
00:16:16]} {[%emt 00:04:16]} Qh5 {[%clk 01:09:27]} {[%emt 00:01:18]} 20. Rh4
{[%clk 00:15:42]} {[%emt 00:01:04]} Qg5 {[%clk 01:07:13]} {[%emt 00:02:44]} 21.
Rxh6 {[%clk 00:15:24]} {[%emt 00:00:48]} Qxh6 {[%clk 01:07:33]} {[%emt
00:00:10]} 22. e4 {[%clk 00:12:49]} {[%emt 00:03:05]} dxe4 {[%clk 01:04:45]}
{[%emt 00:03:18]} 23. Qxe4 {[%clk 00:11:33]} {[%emt 00:01:46]} Qe6 {[%clk
01:03:59]} {[%emt 00:01:17]} 24. d5 {[%clk 00:09:48]} {[%emt 00:02:15]} Qxe4
{[%clk 01:03:15]} {[%emt 00:01:13]} 25. Bxe4 {[%clk 00:10:00]} {[%emt
00:00:17]} c5 {[%clk 01:03:41]} {[%emt 00:00:04]} 26. Rc1 {[%clk 00:09:23]}
{[%emt 00:01:07]} b6 {[%clk 01:03:59]} {[%emt 00:00:13]} 27. d6 {[%clk
00:09:08]} {[%emt 00:00:45]} Rb8 {[%clk 01:04:21]} {[%emt 00:00:08]} 28. Rf1
{[%clk 00:08:13]} {[%emt 00:01:23]} Be6 {[%clk 01:03:54]} {[%emt 00:00:59]} 29.
Bc6 {[%clk 00:05:52]} {[%emt 00:02:51]} Rd8 {[%clk 01:03:16]} {[%emt 00:01:08]}
30. d7 {[%clk 00:05:10]} {[%emt 00:01:12]} g5 {[%clk 00:48:29]} {[%emt
00:15:17]} 31. g4 {[%clk 00:04:34]} {[%emt 00:01:06]} a6 {[%clk 00:32:09]}
{[%emt 00:16:51]} 32. a4 {[%clk 00:04:30]} {[%emt 00:00:33]} Kg7 {[%clk
00:29:06]} {[%emt 00:03:32]} 33. Kg3 {[%clk 00:04:11]} {[%emt 00:00:50]} h6
{[%emt 00:00:19]} 34. Rf3 {[%clk 00:04:06]} {[%emt 00:00:35]} Kg6 {[%clk
00:21:04]} {[%emt 00:08:42]} 1/2-1/2

[Event "Mistrovství Čech mládeže 2023 - HD12"]
[Site "Harrachov, Czech Republic"]
[Date "2023.10.26"]
[Round "7.6"]
[White "Frantsev, Iegor"]
[Black "Černý, Rodan"]
[Result "1/2-1/2"]
[TimeControl "90m + 30s"]
[WhiteElo "1397"]
[BlackElo "1383"]

1. d4 {[%clk 01:30:57]} {[%emt 00:00:02]} Nf6 {[%clk 01:30:35]} {[%emt
00:00:25]} 2. Bg5 {[%clk 01:30:52]} {[%emt 00:00:35]} g6 {[%clk 01:30:17]}
{[%emt 00:00:48]} 3. Bxf6 {[%clk 01:31:11]} {[%emt 00:00:12]} exf6 {[%clk
01:30:45]} {[%emt 00:00:02]} 4. c3 {[%clk 01:30:56]} {[%emt 00:00:44]} Bg7
{[%clk 01:30:30]} {[%emt 00:00:45]} 5. e3 {[%clk 01:31:08]} {[%emt 00:00:17]}
O-O {[%clk 01:30:30]} {[%emt 00:00:31]} 6. Bd3 {[%clk 01:31:17]} {[%emt
00:00:20]} f5 {[%clk 01:28:44]} {[%emt 00:02:17]} 7. Nf3 {[%clk 01:31:03]}
{[%emt 00:00:44]} d6 {[%clk 01:29:08]} {[%emt 00:00:07]} 8. Nbd2 {[%clk
01:30:56]} {[%emt 00:00:36]} Re8 {[%clk 01:28:43]} {[%emt 00:00:56]} 9. O-O
{[%clk 01:30:33]} {[%emt 00:00:52]} Nd7 {[%clk 01:28:38]} {[%emt 00:00:36]} 10.
Re1 {[%clk 01:30:19]} {[%emt 00:00:43]} Nf6 {[%clk 01:28:26]} {[%emt 00:00:42]}
11. Qc2 {[%clk 01:30:00]} {[%emt 00:00:47]} c6 {[%clk 01:20:09]} {[%emt
00:08:49]} 12. e4 {[%clk 01:25:30]} {[%emt 00:05:01]} fxe4 {[%clk 01:20:17]}
{[%emt 00:00:21]} 13. Nxe4 {[%clk 01:25:28]} {[%emt 00:00:33]} Nxe4 {[%emt
00:00:32]} 14. Bxe4 {[%clk 01:25:12]} {[%emt 00:00:46]} Bd7 {[%clk 01:14:22]}
{[%emt 00:06:23]} 15. Rad1 {[%clk 01:21:49]} {[%emt 00:03:51]} Qc7 {[%clk
01:12:47]} {[%emt 00:02:06]} 16. h3 {[%clk 01:18:48]} {[%emt 00:03:31]} d5
{[%clk 01:10:29]} {[%emt 00:02:49]} 17. Bd3 {[%clk 01:18:15]} {[%emt 00:01:02]}
Qf4 {[%clk 01:10:21]} {[%emt 00:00:38]} 18. Qd2 {[%clk 01:16:30]} {[%emt
00:02:15]} Qxd2 {[%clk 01:08:53]} {[%emt 00:01:59]} 19. Nxd2 {[%clk 01:14:30]}
{[%emt 00:02:28]} Kf8 {[%clk 01:08:48]} {[%emt 00:00:37]} 20. Nb3 {[%clk
01:12:11]} {[%emt 00:02:48]} b6 {[%clk 01:08:57]} {[%emt 00:00:21]} 21. Kf1
{[%clk 01:08:23]} {[%emt 00:04:17]} a5 {[%clk 01:07:41]} {[%emt 00:01:47]} 22.
a3 {[%clk 01:01:06]} {[%emt 00:07:48]} Rec8 {[%clk 01:04:52]} {[%emt 00:03:18]}
23. Bc2 {[%clk 00:58:59]} {[%emt 00:02:36]} Be6 {[%clk 01:04:23]} {[%emt
00:01:00]} 24. f3 {[%clk 00:44:13]} {[%emt 00:15:16]} c5 {[%clk 01:02:56]}
{[%emt 00:01:57]} 25. a4 {[%clk 00:34:29]} {[%emt 00:10:13]} Bd7 {[%clk
01:01:41]} {[%emt 00:01:45]} 26. dxc5 {[%clk 00:32:26]} {[%emt 00:02:34]} bxc5
{[%clk 01:02:01]} {[%emt 00:00:09]} 27. Rxd5 {[%clk 00:30:32]} {[%emt
00:02:25]} Bxa4 {[%clk 01:02:22]} {[%emt 00:00:10]} 28. Ra1 {[%clk 00:24:35]}
{[%emt 00:06:26]} Bxb3 {[%clk 01:00:25]} {[%emt 00:02:27]} 29. Bxb3 {[%clk
00:24:43]} {[%emt 00:00:21]} 1/2-1/2